[Event "Gaprindashvili Cup Women I Stage 2020"]
[Site "Online"]
[Date "2020.11.04"]
[Round "1.9"]
[White "Sichinava, Mariam"]
[Black "Abuladze, Natali"]
[Result "0-1"]
[ECO "E65"]
[WhiteElo "1516"]
[BlackElo "1049"]
[Annotator "NA RC"]
[PlyCount "146"]
[EventDate "2020.11.04"]
[EventType "swiss"]
[SourceTitle "playchess.com"]
[Source "ChessBase"]
[SourceQuality "1"]
[TimeControl "1500+5"]

1. Nf3 {[%emt 0:00:02]} Nf6 {[%emt 0:00:15]} 2. g3 {[%emt 0:00:03]} g6 {[%emt 0:00:03]} 3. Bg2 {[%emt 0:00:02]} Bg7 {[%emt 0:00:02]} 4. c4 {[%emt 0:00:01]} O-O {[%emt 0:00:11]} 5. O-O {[%emt 0:00:02]} d6 {[%emt 0:00:16]} 6. d4 {[%emt 0:00:02]} Nbd7 {[%emt 0:00:42]} 7. Nc3 {[%emt 0:00:03]} c5 {[%emt 0:00:48]} 8. d5 {[%emt 0:00:34]} a6 {[%emt 0:00:37]} 9. e4 {[%emt 0:00:06]} Rb8 {[%emt 0:00:44]} 10. a4 {[%emt 0:00:18]} Nb6 {[%emt 0:00:55]} 11. Qe2 {[%emt 0:00:16]} Bg4 {[%emt 0:01:28]} 12. h3 {[%emt 0:00:04]} Bxf3 {[%emt 0:00:36]} 13. Bxf3 {[%emt 0:00:03]} Qd7 {[%emt 0:00:30]} 14. Bg2 {[%emt 0:00:05]} Rbd8 {[%emt 0:01:25]} 15. Be3 {[%emt 0:00:22]} Qc7 {[%emt 0:00:12]} 16. Rfd1 {[%emt 0:00:53]} e6 {[%emt 0:00:43]} 17. a5 {[%emt 0:01:28]} Nbd7 {[%emt 0:00:23]} 18. dxe6 {[%emt 0:00:04]} fxe6 {[%emt 0:00:11]} 19. Bf4 {[%emt 0:00:06]} Ne5 {[%emt 0:01:13]} 20. Be3 {[%emt 0:04:54]} Nc6 {[%emt 0:01:30]} 21. Bd2 {[%emt 0:02:04]} Nd4 {[%emt 0:00:31]} 22. Qf1 {[%emt 0:00:40]} Nb3 {[%emt 0:00:43]} 23. Ra3 {[%emt 0:01:49]} Nxa5 {[%emt 0:00:46]} 24. Nd5 {[%emt 0:01:59]} exd5 {[%emt 0:00:23]} 25. Bxa5 {[%emt 0:00:04]} b6 {[%emt 0:00:05]} 26. Bd2 {[%emt 0:00:06]} dxe4 {[%emt 0:00:12]} 27. Rxa6 {[%emt 0:00:15]} Qb7 {[%emt 0:01:08]} 28. Ra3 {[%emt 0:00:53]} d5 {[%emt 0:00:57]} 29. cxd5 {[%emt 0:01:02]} Qxd5 {[%emt 0:00:16]} 30. Raa1 {[%emt 0:00:07]} Qe6 {[%emt 0:00:22]} 31. Bc3 {[%emt 0:00:21]} e3 {[%emt 0:00:17]} 32. Re1 {[%emt 0:00:43]} Nd5 {[%emt 0:01:04]} 33. Bxd5 {[%emt 0:02:48]} exf2+ {[%emt 0:00:39]} 34. Qxf2 {[%emt 0:00:05]} Qxd5 {[%emt 0:00:22]} 35. Qc2 {[%emt 0:00:31]} Qd3 {[%emt 0:00:51]} 36. Qxd3 {[%emt 0:01:32]} Rxd3 {[%emt 0:00:09]} 37. Bxg7 {[%emt 0:00:07]} Kxg7 {[%emt 0:00:07]} 38. Re7+ {[%emt 0:00:38]} Kh6 {[%emt 0:00:13]} 39. Raa7 {[%emt 0:01:06]} Rxg3+ {[%emt 0:00:19]} 40. Kh2 {[%emt 0:00:04]} Rb3 {[%emt 0:00:15]} 41. Rxh7+ {[%emt 0:00:24]} Kg5 {[%emt 0:00:06]} 42. h4+ {[%emt 0:01:02]} Kg4 {[%emt 0:00:17]} 43. Ra4+ {[%emt 0:00:03]} Rf4 {[%emt 0:00:09]} 44. Rxf4+ {[%emt 0:00:28]} Kxf4 {[%emt 0:00:10]} 45. Rf7+ {[%emt 0:00:02]} Kg4 {[%emt 0:00:05]} 46. Rf2 {[%emt 0:00:04]} Rh3+ {[%emt 0:00:34]} 47. Kg1 {[%emt 0:00:03]} Rxh4 {[%emt 0:00:12]} 48. Kg2 {[%emt 0:00:09]} Kg5 {[%emt 0:00:38]} 49. Rf3 {[%emt 0:00:17]} Rb4 {[%emt 0:00:10]} 50. b3 {[%emt 0:00:02]} Kg4 {[%emt 0:00:10]} 51. Rg3+ {[%emt 0:00:02]} Kf5 {[%emt 0:00:05]} 52. Rf3+ {[%emt 0:00:02]} Ke4 {[%emt 0:00:08]} 53. Rg3 {[%emt 0:00:05]} Kf5 {[%emt 0:00:17]} 54. Rf3+ {[%emt 0:00:02]} Rf4 {[%emt 0:00:15]} 55. Rd3 {[%emt 0:00:02]} Rg4+ {[%emt 0:00:34]} 56. Kf3 {[%emt 0:00:03]} Rd4 {[%emt 0:00:36]} 57. Re3 {[%emt 0:00:06]} g5 {[%emt 0:00:09]} 58. Kg3 {[%emt 0:00:07]} g4 {[%emt 0:00:04]} 59. Rc3 {[%emt 0:00:05]} Rf4 {[%emt 0:00:08]} 60. Rd3 {[%emt 0:00:04]} Ke4 {[%emt 0:00:14]} 61. Rd6 {[%emt 0:00:06]} Rf3+ {[%emt 0:00:07]} 62. Kxg4 {[%emt 0:00:02]} Rxb3 {[%emt 0:00:05]} 63. Re6+ {[%emt 0:00:01]} Kd5 {[%emt 0:00:05]} 64. Re8 {[%emt 0:00:03]} b5 {[%emt 0:00:06]} 65. Rd8+ {[%emt 0:00:02]} Kc4 {[%emt 0:00:09]} 66. Kf4 {[%emt 0:00:03]} Rd3 {[%emt 0:00:11]} 67. Rb8 {[%emt 0:00:04]} b4 {[%emt 0:00:07]} 68. Ke4 {[%emt 0:00:03]} b3 {[%emt 0:00:06]} 69. Rb6 {[%emt 0:00:09]} Kc3 {[%emt 0:00:10]} 70. Rb5 {[%emt 0:00:11]} c4 {[%emt 0:00:06]} 71. Rb7 {[%emt 0:00:06]} b2 {[%emt 0:00:05]} 72. Rb5 {[%emt 0:00:05]} Rd1 {[%emt 0:00:08]} 73. Rh5 {[%emt 0:00:13]} b1=Q+ {[%emt 0:00:08]} 0-1

[Event "Gaprindashvili Cup Women I Stage 2020"]
[Site "Online"]
[Date "2020.11.04"]
[Round "1.10"]
[White "Asatiani, Tamar"]
[Black "Tsetskhladze, Mariam"]
[Result "1-0"]
[ECO "C41"]
[WhiteElo "1004"]
[BlackElo "1477"]
[Annotator "NA RC"]
[PlyCount "155"]
[EventDate "2020.11.04"]
[EventType "swiss"]
[SourceTitle "playchess.com"]
[Source "ChessBase"]
[SourceQuality "1"]
[TimeControl "1500+5"]

1. e4 {[%emt 0:00:02]} e5 {[%emt 0:00:03]} 2. Nf3 {[%emt 0:00:03]} d6 {[%emt 0:00:03]} 3. d4 {[%emt 0:00:20]} exd4 {[%emt 0:00:02]} 4. Nxd4 {[%emt 0:00:05]} Nf6 {[%emt 0:00:03]} 5. Nc3 {[%emt 0:00:03]} Be7 {[%emt 0:00:05]} 6. Bc4 {[%emt 0:00:21]} a6 {[%emt 0:00:31]} 7. O-O {[%emt 0:00:14]} O-O {[%emt 0:00:12]} 8. Re1 {[%emt 0:00:19]} c6 {[%emt 0:02:02]} 9. Nf5 {[%emt 0:02:59]} Bxf5 {[%emt 0:00:47]} 10. exf5 {[%emt 0:00:06]} d5 {[%emt 0:00:08]} 11. Bd3 {[%emt 0:00:53]} c5 {[%emt 0:00:58]} 12. b3 {[%emt 0:00:49]} Nc6 {[%emt 0:01:10]} 13. Bb2 {[%emt 0:00:54]} Qd7 {[%emt 0:00:30]} 14. Qf3 {[%emt 0:02:09]} b5 {[%emt 0:02:59]} 15. Rad1 {[%emt 0:01:19]} Nd4 {[%emt 0:01:41]} 16. Qg3 {[%emt 0:02:34]} Bd6 {[%emt 0:02:49]} 17. Qh3 {[%emt 0:01:14]} c4 {[%emt 0:04:22]} 18. bxc4 {[%emt 0:00:43]} bxc4 {[%emt 0:00:44]} 19. Be2 {[%emt 0:03:19]} Nxc2 {[%emt 0:00:17]} 20. Rf1 {[%emt 0:00:08]} d4 {[%emt 0:02:20]} 21. Nb1 {[%emt 0:00:41]} d3 {[%emt 0:01:06]} 22. Bf3 {[%emt 0:00:12]} Rab8 {[%emt 0:00:05]} 23. Bxf6 {[%emt 0:00:14]} gxf6 {[%emt 0:00:04]} 24. Qg4+ {[%emt 0:00:14]} Kh8 {[%emt 0:00:09]} 25. Qxc4 {[%emt 0:00:15]} Rfd8 {[%emt 0:00:31]} 26. Qxa6 {[%emt 0:01:20]} Qxf5 {[%emt 0:00:29]} 27. Qc4 {[%emt 0:00:56]} Rbc8 {[%emt 0:02:36]} 28. Qxf7 {[%emt 0:00:51]} Qf4 {[%emt 0:00:20]} 29. Qh5 {[%emt 0:00:15]} Rc5 {[%emt 0:00:05]} 30. Qh3 {[%emt 0:00:16]} Rg5 {[%emt 0:00:03]} 31. Nd2 {[%emt 0:00:49]} Rdg8 {[%emt 0:00:08]} 32. Ne4 {[%emt 0:00:26]} R5g7 {[%emt 0:00:05]} 33. Rxd3 {[%emt 0:01:02]} Bb8 {[%emt 0:00:06]} 34. Ng3 {[%emt 0:00:35]} Nd4 {[%emt 0:00:02]} 35. Bd5 {[%emt 0:01:03]} Rd8 {[%emt 0:00:06]} 36. Nh5 {[%emt 0:00:02]} Qxh2+ {[%emt 0:00:11]} 37. Qxh2 {[%emt 0:00:03]} Ne2+ {[%emt 0:00:02]} 38. Kh1 {[%emt 0:00:05]} Bxh2 {[%emt 0:00:03]} 39. Kxh2 {[%emt 0:00:02]} Rgd7 {[%emt 0:00:02]} 40. Nxf6 {[%emt 0:00:04]} Rd6 {[%emt 0:00:02]} 41. Re3 {[%emt 0:00:07]} Rxf6 {[%emt 0:00:03]} 42. Rxe2 {[%emt 0:00:03]} Rxd5 {[%emt 0:00:02]} 43. Re8+ {[%emt 0:00:03]} Kg7 {[%emt 0:00:01]} 44. Re7+ {[%emt 0:00:01]} Kg6 {[%emt 0:00:02]} 45. a4 {[%emt 0:00:04]} Ra5 {[%emt 0:00:02]} 46. Re4 {[%emt 0:00:06]} Rfa6 {[%emt 0:00:16]} 47. Ra1 {[%emt 0:00:16]} Kf5 {[%emt 0:00:10]} 48. Rh4 {[%emt 0:00:04]} h6 {[%emt 0:00:03]} 49. Rh5+ {[%emt 0:00:14]} Kg6 {[%emt 0:00:03]} 50. Rxa5 {[%emt 0:00:03]} Rxa5 {[%emt 0:00:01]} 51. g3 {[%emt 0:00:01]} Kf5 {[%emt 0:00:03]} 52. f4 {[%emt 0:00:02]} Kg4 {[%emt 0:00:03]} 53. Kg2 {[%emt 0:00:03]} h5 {[%emt 0:00:02]} 54. Ra3 {[%emt 0:00:04]} Rc5 {[%emt 0:00:08]} 55. a5 {[%emt 0:00:08]} Rc8 {[%emt 0:00:02]} 56. a6 {[%emt 0:00:03]} Ra8 {[%emt 0:00:02]} 57. a7 {[%emt 0:00:02]} Kf5 {[%emt 0:00:07]} 58. Kh3 {[%emt 0:00:03]} Kg6 {[%emt 0:00:04]} 59. Kh4 {[%emt 0:00:03]} Kf5 {[%emt 0:00:08]} 60. Ra5+ {[%emt 0:00:07]} Kf6 {[%emt 0:00:03]} 61. Kxh5 {[%emt 0:00:06]} Rh8+ {[%emt 0:00:04]} 62. Kg4 {[%emt 0:00:02]} Rg8+ {[%emt 0:00:02]} 63. Kf3 {[%emt 0:00:02]} Ra8 {[%emt 0:00:01]} 64. g4 {[%emt 0:00:01]} Kg6 {[%emt 0:00:03]} 65. f5+ {[%emt 0:00:02]} Kf6 {[%emt 0:00:03]} 66. Kf4 {[%emt 0:00:02]} Kf7 {[%emt 0:00:03]} 67. g5 {[%emt 0:00:02]} Kg7 {[%emt 0:00:08]} 68. g6 {[%emt 0:00:09]} Kf6 {[%emt 0:00:03]} 69. Ra6+ {[%emt 0:00:03]} Kg7 {[%emt 0:00:02]} 70. Kg5 {[%emt 0:00:04]} Kg8 {[%emt 0:00:06]} 71. f6 {[%emt 0:00:02]} Kf8 {[%emt 0:00:02]} 72. Kh6 {[%emt 0:00:08]} Kg8 {[%emt 0:00:03]} 73. f7+ {[%emt 0:00:02]} Kf8 {[%emt 0:00:02]} 74. Kh7 {[%emt 0:00:11]} Ke7 {[%emt 0:00:03]} 75. g7 {[%emt 0:00:19]} Kxf7 {[%emt 0:00:03]} 76. g8=Q+ {[%emt 0:00:02]} Rxg8 {[%emt 0:00:02]} 77. a8=Q {[%emt 0:00:02]} Rd8 {[%emt 0:00:14]} 78. Qf3+ {[%emt 0:00:10]} 1-0

[Event "Gaprindashvili Cup Women I Stage 2020"]
[Site "Online"]
[Date "2020.11.04"]
[Round "2.1"]
[White "Antia, Sopia"]
[Black "Esadze, Tamari"]
[Result "0-1"]
[ECO "B52"]
[WhiteElo "1594"]
[BlackElo "1889"]
[Annotator "NA RC"]
[PlyCount "76"]
[EventDate "2020.11.04"]
[EventType "swiss"]
[SourceTitle "playchess.com"]
[Source "ChessBase"]
[SourceQuality "1"]
[TimeControl "1500+5"]

{[%evp 16,75,39,47,22,28,27,26,28,0,-13,0,-6,-10,0,-18,-4,-20,0,0,32767,-15,-6,-7,-9,32767,-1,32767,-60,32767,-72,-56,-51,32767,-102,-92,-102,-127,-145,-128,32767,-498,-670,-981,-961,-1231,-2310,-29985,-29988,-29992,-29993,-29993,-29991,-29992,-652,-29990,32767,32767,32767,32767,-29992,-29994]} 1. e4 {[%emt 0:00:00]} c5 {[%emt 0:00:04]} 2. Nf3 {[%emt 0:00:02]} d6 {[%emt 0:00:04]} 3. Bb5+ {[%emt 0:00:02]} Bd7 {[%emt 0:00:05]} 4. Bxd7+ {[%emt 0:00:02]} Qxd7 {[%emt 0:00:03]} 5. c4 {[%emt 0:00:02]} Nc6 {[%emt 0:00:05]} 6. d4 {[%emt 0:00:04]} cxd4 {[%emt 0:00:03]} 7. Nxd4 {[%emt 0:00:01]} Nf6 {[%emt 0:00:07]} 8. Nc3 {[%emt 0:00:03]} g6 {[%emt 0:00:24]} 9. f3 {[%emt 0:00:05]} Bg7 {[%emt 0:00:09]} 10. Be3 {[%emt 0:00:02]} O-O {[%emt 0:00:14]} 11. Rc1 {[%emt 0:00:02] B52: Sicilian: Moscow Variation with 3...Bd7.} e6 {[%emt 0:00:27]} 12. Ndb5 {[%emt 0:00:32]} Rfd8 {[%emt 0:00:17]} 13. O-O {[%emt 0:02:03]} a6 {[%emt 0:00:29] [#]} 14. Nd4 $146 {[%emt 0:00:09]} ({Predecessor:} 14. Na3 Ne7 15. Qc2 d5 16. Rfd1 Qe8 17. e5 Nd7 18. cxd5 exd5 19. f4 Nf8 20. Qb3 d4 21. Bxd4 Ne6 22. Be3 Nf5 23. Nd5 Rac8 24. Nc4 Bf8 25. Nf6+ {1-0 (25) Kuna,P (1662)-Nemegeer,A (1803) Bratislava 2019}) 14... Nxd4 {[%emt 0:00:23]} 15. Bxd4 {[%emt 0:00:03]} b5 {[%emt 0:00:59]} 16. cxb5 {[%emt 0:00:59]} axb5 {[%emt 0:00:03]} 17. b3 {[%emt 0:00:39]} Nh5 {[%emt 0:01:15]} 18. Bxg7 {[%emt 0:00:43]} Kxg7 {[%emt 0:00:13]} 19. Qd4+ {[%emt 0:00:09]} e5 {[%emt 0:00:17]} 20. Qd2 {[%emt 0:00:53]} Nf4 {[%emt 0:01:20]} 21. Rfd1 {[%emt 0:01:07]} b4 {[%emt 0:00:45]} 22. Na4 {[%emt 0:01:32]} d5 {[%emt 0:01:02]} 23. Kh1 {[%emt 0:03:35]} Qb7 {[%emt 0:02:00]} 24. Qb2 {[%emt 0:02:53]} d4 {[%emt 0:00:47]} 25. g3 {[%emt 0:00:07]} Ne6 {[%emt 0:00:26]} 26. Nc5 {[%emt 0:00:44]} Nxc5 {[%emt 0:00:06]} 27. Rxc5 {[%emt 0:00:04]} Qe7 {[%emt 0:01:06]} 28. Qc2 $2 {[%emt 0:00:28] [#]} (28. Rc4 $17 {is a better chance.}) 28... d3 $1 {[%emt 0:00:33]} 29. Qc4 {[%emt 0:01:25]} Rxa2 {[%emt 0:01:26]} 30. Rc7 {[%emt 0:00:10]} Qf6 {[%emt 0:00:36]} 31. Rxd3 {[%emt 0:00:28]} Rd4 {[%emt 0:02:06]} 32. Qb5 {[%emt 0:02:07] [#]} Rxe4 $1 {[%emt 0:01:06]} 33. Rc1 {[%emt 0:02:23]} Ree2 {[%emt 0:00:03]} 34. Qd5 {[%emt 0:01:31]} Rxh2+ {[%emt 0:00:15]} (34... Qb6 $142 35. Rd2 Raxd2 36. Qxd2 Rxd2 37. Rf1 Qe3 38. h4 Qe2 39. Rf2 Qxf2 40. g4 Qh2#) 35. Kg1 {[%emt 0:00:02]} Rag2+ {[%emt 0:00:53]} 36. Kf1 {[%emt 0:00:04]} Rf2+ {[%emt 0:00:02]} 37. Ke1 {[%emt 0:00:08]} Re2+ {[%emt 0:00:24]} 38. Kd1 {[%emt 0:00:50]} e4 {[%emt 0:02:01]} 0-1

[Event "Gaprindashvili Cup Women I Stage 2020"]
[Site "Online"]
[Date "2020.11.04"]
[Round "2.2"]
[White "Khazhomia, Anuki"]
[Black "Maghlakelidze, Rusudan"]
[Result "1-0"]
[ECO "E94"]
[WhiteElo "1880"]
[BlackElo "1613"]
[Annotator "NA RC"]
[PlyCount "145"]
[EventDate "2020.11.04"]
[EventType "swiss"]
[SourceTitle "playchess.com"]
[Source "ChessBase"]
[SourceQuality "1"]
[TimeControl "1500+5"]

1. d4 {[%emt 0:00:00]} Nf6 {[%emt 0:00:04]} 2. c4 {[%emt 0:00:03]} g6 {[%emt 0:00:02]} 3. Nc3 {[%emt 0:00:02]} Bg7 {[%emt 0:00:01]} 4. e4 {[%emt 0:00:02]} O-O {[%emt 0:00:02]} 5. Nf3 {[%emt 0:00:03]} d6 {[%emt 0:00:02]} 6. Be2 {[%emt 0:00:06]} Nbd7 {[%emt 0:00:05]} 7. O-O {[%emt 0:00:02]} e5 {[%emt 0:00:02]} 8. d5 {[%emt 0:00:03]} Nc5 {[%emt 0:00:04]} 9. Qc2 {[%emt 0:00:03]} a5 {[%emt 0:00:02]} 10. b3 {[%emt 0:01:14]} Ne8 {[%emt 0:00:51]} 11. a3 {[%emt 0:00:47] E94: King's Indian: Classical: 6 Be2 e5 7 0-0: Various Black 7th moves.} f5 {[%emt 0:00:51]} 12. Bg5 {[%emt 0:00:12] [#]} Bf6 $146 {[%emt 0:00:17]} ({Predecessor:} 12... Nf6 13. Nd2 h6 14. Bxf6 Qxf6 15. b4 Nd7 16. Nb5 Qd8 17. Bd3 f4 18. f3 Rf7 {1-0 (41) Ivekovic,A (2070)-Jacimovic,S (1975) Mali Losinj 2017}) 13. Bd2 {[%emt 0:02:42]} fxe4 {[%emt 0:04:42]} 14. Nxe4 {[%emt 0:00:04]} Nxe4 {[%emt 0:00:25]} 15. Qxe4 {[%emt 0:00:05]} Bf5 {[%emt 0:00:04]} 16. Qe3 {[%emt 0:00:04]} c6 {[%emt 0:01:25]} 17. Ng5 {[%emt 0:04:51]} Nc7 {[%emt 0:01:22]} 18. g4 {[%emt 0:05:13]} Bxg5 {[%emt 0:05:38]} 19. Qxg5 {[%emt 0:00:05]} Bc8 {[%emt 0:00:36]} 20. Qxd8 {[%emt 0:02:16]} Rxd8 {[%emt 0:00:04]} 21. Bg5 {[%emt 0:00:59]} Re8 {[%emt 0:00:04]} 22. Rfd1 {[%emt 0:01:13]} c5 {[%emt 0:00:03]} (22... cxd5 $11 {remains equal.} 23. cxd5 Bd7) 23. Re1 {[%emt 0:02:31]} Bd7 {[%emt 0:00:24]} 24. a4 {[%emt 0:01:24]} Na6 {[%emt 0:00:11] [#]} 25. Kg2 {[%emt 0:01:28]} (25. Bh6 $1 $16) 25... Nb4 {[%emt 0:00:11]} 26. Rac1 {[%emt 0:00:05]} b6 {[%emt 0:01:22]} ({Black should play} 26... Kg7) 27. Rc3 {[%emt 0:00:05]} Kg7 {[%emt 0:01:35]} 28. Bd1 {[%emt 0:00:36]} h6 {[%emt 0:00:06]} 29. Bh4 {[%emt 0:00:04]} (29. Bd2 $16) 29... g5 {[%emt 0:03:01]} 30. Bg3 {[%emt 0:00:03]} Rf8 {[%emt 0:00:04]} 31. Ree3 {[%emt 0:00:23]} Be8 {[%emt 0:01:28]} 32. h4 {[%emt 0:00:14]} Bg6 {[%emt 0:00:21]} 33. Bf3 {[%emt 0:00:18]} Na2 {[%emt 0:00:51]} 34. Rcd3 {[%emt 0:00:15]} Bxd3 {[%emt 0:00:05]} 35. Rxd3 {[%emt 0:00:01]} Nb4 {[%emt 0:00:03]} 36. Re3 {[%emt 0:00:04]} Nc2 {[%emt 0:00:07]} 37. Re4 {[%emt 0:00:06]} Nd4 {[%emt 0:00:07]} 38. Bd1 {[%emt 0:00:02]} gxh4 {[%emt 0:00:24]} 39. Bxh4 {[%emt 0:00:04]} Rf4 {[%emt 0:00:07]} 40. Re3 {[%emt 0:00:04] [#]} Raf8 {[%emt 0:00:30]} (40... Nf5 $142 $1 {[%mdl 512]} 41. gxf5 Rxh4) 41. Bg3 {[%emt 0:00:04]} R4f7 {[%emt 0:00:24]} 42. Kh3 {[%emt 0:00:05]} Nf3 {[%emt 0:00:06]} 43. Kg2 {[%emt 0:00:03]} Ng5 {[%emt 0:00:03]} 44. Be2 {[%emt 0:00:04]} Rf6 {[%emt 0:00:15]} 45. Bh4 {[%emt 0:00:04]} Rf4 {[%emt 0:00:04]} 46. Bg3 {[%emt 0:00:03]} Re4 {[%emt 0:00:02]} 47. Rxe4 {[%emt 0:00:09]} Nxe4 {[%emt 0:00:01]} 48. Bh4 {[%emt 0:00:02]} Nd2 $2 {[%emt 0:00:14]} (48... Rf4 $19 {is more deadly.} 49. f3 Nc3) 49. Bd1 $2 {[%emt 0:00:02]} (49. Be7 $15) 49... Nb1 {[%emt 0:00:03]} 50. f3 {[%emt 0:00:04]} Nc3 {[%emt 0:00:02]} 51. Bc2 {[%emt 0:00:03]} e4 {[%emt 0:00:01]} 52. fxe4 {[%emt 0:00:03]} Rf4 {[%emt 0:00:14]} 53. Be1 $2 {[%emt 0:00:05]} (53. Bg3 $1 $11 {and White is okay.} Rxg4 54. Kf3 Rxg3+ 55. Kxg3) 53... Nxe4 {[%emt 0:00:03]} 54. Bxe4 {[%emt 0:00:11]} Rxe4 $19 {[%emt 0:00:02]} 55. Bc3+ {[%emt 0:00:02]} Kg6 {[%emt 0:00:03]} 56. Kf3 {[%emt 0:00:01]} Re8 {[%emt 0:00:04]} 57. Bd2 {[%emt 0:00:08]} Rf8+ {[%emt 0:00:03]} 58. Kg3 $2 {[%emt 0:00:06]} (58. Bf4) 58... Rf1 {[%emt 0:00:13]} 59. Bf4 {[%emt 0:00:02]} Rb1 {[%emt 0:00:05]} 60. Bxd6 {[%emt 0:00:02]} Rxb3+ {[%emt 0:00:02]} 61. Kf4 {[%emt 0:00:02]} Rb4 {[%emt 0:00:05]} 62. Ke5 {[%emt 0:00:08]} Rxc4 {[%emt 0:00:08]} 63. Bc7 {[%emt 0:00:03]} Rb4 {[%emt 0:00:05]} 64. d6 {[%emt 0:00:02]} Rb1 {[%emt 0:00:08]} 65. d7 {[%emt 0:00:02]} Rd1 {[%emt 0:00:02]} 66. d8=Q {[%emt 0:00:05]} Rxd8 {[%emt 0:00:02]} 67. Bxd8 {[%emt 0:00:04]} c4 {[%emt 0:00:01]} 68. Kd4 {[%emt 0:00:03]} c3 {[%emt 0:00:09]} 69. Kxc3 {[%emt 0:00:02]} Kf7 {[%emt 0:00:01]} 70. Bxb6 {[%emt 0:00:05]} Ke6 {[%emt 0:00:03]} 71. Kd3 {[%emt 0:00:06]} Kd5 {[%emt 0:00:03]} 72. Bxa5 {[%emt 0:00:03]} Kc5 {[%emt 0:00:02]} 73. Bd2 {[%emt 0:00:03]} 1-0

[Event "Gaprindashvili Cup Women I Stage 2020"]
[Site "Online"]
[Date "2020.11.04"]
[Round "2.3"]
[White "Kirtadze, Anastasia"]
[Black "Dolakidze, Mariam"]
[Result "1/2-1/2"]
[ECO "A39"]
[WhiteElo "1810"]
[BlackElo "1416"]
[Annotator "NA RC"]
[PlyCount "160"]
[EventDate "2020.11.04"]
[EventType "swiss"]
[SourceTitle "playchess.com"]
[Source "ChessBase"]
[SourceQuality "1"]
[TimeControl "1500+5"]

1. Nf3 {[%emt 0:00:03]} c5 {[%emt 0:00:04]} 2. c4 {[%emt 0:00:07]} Nc6 {[%emt 0:00:09]} 3. Nc3 {[%emt 0:00:14]} Nf6 {[%emt 0:00:02]} 4. g3 {[%emt 0:00:04]} g6 {[%emt 0:00:04]} 5. Bg2 {[%emt 0:00:04]} Bg7 {[%emt 0:00:01]} 6. d4 {[%emt 0:00:06]} cxd4 {[%emt 0:00:06]} 7. Nxd4 {[%emt 0:00:05]} O-O {[%emt 0:00:08]} 8. O-O {[%emt 0:00:04]} a6 {[%emt 0:00:07]} 9. e4 {[%emt 0:00:31]} Nxe4 {[%emt 0:01:35] A39: Symmetrical English vs ...g6: 4 Bg2 Bg7 5 Nf3 Nf6 6 0-0 0-0 7 d4.} 10. Nxc6 {[%emt 0:03:17]} Nxc3 {[%emt 0:00:03]} 11. Nxd8 {[%emt 0:00:58]} Nxd1 {[%emt 0:00:03]} 12. Nxb7 {[%emt 0:00:42]} Bxb7 {[%emt 0:00:44] [#]} 13. Rxd1 $146 {[%emt 0:00:52]} ({Predecessor:} 13. Bxb7 Rab8 14. Rxd1 Rxb7 15. Rb1 Rc8 16. b3 Rxc4 17. Ba3 Rc2 18. Bxe7 Rxa2 19. Rdc1 {½-½ (28) Rothkugel,W (2001)-Spradley,J (1611) Duesseldorf 2009}) 13... Bxg2 {[%emt 0:00:08]} 14. Kxg2 {[%emt 0:00:15]} d6 {[%emt 0:00:01]} 15. Rb1 {[%emt 0:00:04]} Rfc8 {[%emt 0:00:04]} 16. b3 {[%emt 0:00:04]} Rab8 {[%emt 0:00:02]} 17. Be3 {[%emt 0:00:05]} Rb7 {[%emt 0:00:19]} 18. Rbc1 {[%emt 0:00:30]} Rbc7 {[%emt 0:00:30]} 19. Rd5 {[%emt 0:00:08]} Bf6 {[%emt 0:01:39]} 20. h4 {[%emt 0:00:13]} h5 {[%emt 0:00:06]} 21. Ra5 {[%emt 0:00:21]} Rc6 {[%emt 0:00:04]} 22. Rd1 {[%emt 0:00:39]} e6 {[%emt 0:00:07]} 23. Bg5 {[%emt 0:00:21]} Bxg5 {[%emt 0:02:09]} 24. Rxg5 {[%emt 0:00:15]} Kf8 {[%emt 0:00:02]} 25. f3 {[%emt 0:00:52]} Ke7 {[%emt 0:00:26]} 26. Ra5 {[%emt 0:00:09]} Rh8 {[%emt 0:00:22]} 27. Re1 {[%emt 0:00:16]} Kd7 {[%emt 0:00:20]} 28. Re4 {[%emt 0:00:06]} Kc7 {[%emt 0:00:29]} 29. Rf4 {[%emt 0:00:14]} Rh7 {[%emt 0:00:36]} 30. Rd4 {[%emt 0:01:05]} Rh8 {[%emt 0:01:32]} 31. Kh3 {[%emt 0:01:29]} Kb6 {[%emt 0:04:34]} 32. Ra4 {[%emt 0:00:15]} Rd8 {[%emt 0:01:22]} 33. Rf4 {[%emt 0:01:26]} Rd7 {[%emt 0:00:42]} 34. Rb4+ {[%emt 0:00:11]} Ka7 {[%emt 0:00:07]} 35. Ra4 {[%emt 0:01:16]} Kb6 {[%emt 0:01:09]} 36. Rd4 {[%emt 0:00:28]} Rdc7 {[%emt 0:02:45]} 37. Kg2 {[%emt 0:01:43]} Kc5 {[%emt 0:01:24]} 38. Rd3 {[%emt 0:00:18]} Kb6 {[%emt 0:00:12]} 39. Kf2 {[%emt 0:00:05]} Rd7 {[%emt 0:00:11]} 40. Ke3 {[%emt 0:00:17]} Rc5 {[%emt 0:00:05]} 41. Rd4 {[%emt 0:00:25]} Re5+ {[%emt 0:00:08]} 42. Kf2 {[%emt 0:00:06]} Ra5 {[%emt 0:01:08]} 43. Rxa5 {[%emt 0:01:16]} Kxa5 {[%emt 0:00:01]} 44. a3 {[%emt 0:02:05]} Kb6 {[%emt 0:00:03]} 45. b4 {[%emt 0:00:04]} Kc6 {[%emt 0:00:05]} 46. Ke3 {[%emt 0:00:03]} Rb7 {[%emt 0:00:06]} 47. Rd3 {[%emt 0:00:15]} f5 $16 {[%emt 0:00:29] [#]} (47... a5 $11) 48. Kf4 $1 {[%emt 0:00:19]} Rd7 {[%emt 0:00:42]} 49. Kg5 {[%emt 0:00:19]} Rd8 {[%emt 0:00:01]} 50. Kf6 {[%emt 0:00:10]} e5 {[%emt 0:00:05]} 51. Kxg6 {[%emt 0:00:17]} Rg8+ {[%emt 0:00:10]} 52. Kxf5 {[%emt 0:00:17]} Rxg3 {[%emt 0:00:02]} 53. a4 {[%emt 0:00:18]} Rh3 {[%emt 0:00:13]} 54. Kg5 {[%emt 0:02:11]} e4 {[%emt 0:00:02]} 55. Rd4 {[%emt 0:00:11]} exf3 {[%emt 0:00:05]} 56. Rf4 {[%emt 0:00:08]} Rg3+ {[%emt 0:00:30]} 57. Kxh5 {[%emt 0:00:05]} Kd7 {[%emt 0:00:03]} 58. b5 {[%emt 0:00:28]} axb5 {[%emt 0:00:03]} 59. axb5 {[%emt 0:00:22]} Ke6 {[%emt 0:00:04]} 60. b6 {[%emt 0:00:06]} Kd7 {[%emt 0:00:01]} 61. b7 {[%emt 0:00:13]} Kc7 {[%emt 0:00:08]} 62. Rf7+ {[%emt 0:00:03]} Kb8 {[%emt 0:00:01]} 63. Kh6 {[%emt 0:00:06]} f2 {[%emt 0:00:05]} 64. Rxf2 {[%emt 0:00:05]} Kxb7 {[%emt 0:00:01]} 65. Rf4 {[%emt 0:00:04]} Kc6 {[%emt 0:00:05]} 66. h5 {[%emt 0:00:04]} Kc5 {[%emt 0:00:03]} 67. Rf6 {[%emt 0:00:11]} d5 {[%emt 0:00:30]} 68. cxd5 {[%emt 0:00:05]} Kxd5 {[%emt 0:00:01]} 69. Rg6 {[%emt 0:00:02]} Rh3 {[%emt 0:00:01]} 70. Kg5 {[%emt 0:00:04]} Ke5 {[%emt 0:00:03]} 71. h6 {[%emt 0:00:04]} Rg3+ {[%emt 0:00:20]} 72. Kh5 {[%emt 0:00:03]} Rh3+ {[%emt 0:00:01]} 73. Kg4 {[%emt 0:00:13]} Rh1 {[%emt 0:00:01]} 74. Kg5 {[%emt 0:00:03]} Rg1+ {[%emt 0:00:11]} 75. Kh5 {[%emt 0:00:03]} Rh1+ {[%emt 0:00:01]} 76. Kg5 {[%emt 0:00:08]} Rg1+ {[%emt 0:00:01]} 77. Kh5 {[%emt 0:00:02]} Rh1+ {[%emt 0:00:06]} 78. Kg4 {[%emt 0:00:03]} Rg1+ {[%emt 0:00:02]} 79. Kh5 {[%emt 0:00:04]} Rh1+ {[%emt 0:00:01]} 80. Kg5 {[%emt 0:00:03]} Rg1+ {[%emt 0:00:01]} 1/2-1/2